lending/lending_fUSD_20260312
["ID","MTS","AMOUNT","RATE_DAILY","PERIOD"]
[408241610,1773298241403,-150.0,0.00019726,2]
[408241611,1773298241412,-500.0,0.00019726,2]
[408241612,1773298241421,-500.0,0.00019726,2]
[408241613,1773298241431,-500.0,0.00019726,2]
[408241614,1773298241440,-150.0,0.00019726,2]
[408241615,1773298241450,-500.0,0.00019726,2]
[408241616,1773298241460,-500.0,0.00019726,2]
[408241617,1773298241474,-500.0,0.00019726,2]
[408241618,1773298241484,-273.53962329,0.00019726,2]
[408241619,1773298241493,-1000.0,0.00019726,2]
[408241620,1773298241502,-269.0,0.00019732,2]
[408241621,1773298241512,-6273.57506241,0.00019756,2]
[408241622,1773298241522,-900.33,0.00019758,2]
[408241623,1773298241531,-200.0,0.00019759,2]
[408241624,1773298241540,-4302.526,0.00019767,2]
[408241625,1773298241550,-185.239,0.00019767,2]
[408241626,1773298241559,-487.86945979,0.00019773,2]
[408241627,1773298241568,-1552.43681819,0.00019773,2]
[408241628,1773298241578,-200.0,0.00019773,2]
[408241629,1773298241587,-500.0,0.00019781,2]
[408241630,1773298241600,-150.0,0.00019781,2]
[408241631,1773298241610,-500.0,0.00019781,2]
[408241632,1773298241620,-150.0,0.00019781,2]
[408241633,1773298241630,-150.0,0.00019781,2]
[408241634,1773298241639,-500.0,0.00019781,2]
[408241635,1773298241649,-152.96458514,0.00019781,2]
[408241636,1773298241660,-162.54927809,0.00019781,2]
[408241637,1773298241670,-445.54749734,0.00019781,2]
[408241638,1773298241679,-500.0,0.00019781,2]
[408241639,1773298241693,-150.0,0.00019781,2]
[408241640,1773298241703,-500.0,0.00019781,2]
[408241641,1773298241713,-564.99396754,0.00019781,2]
[408241642,1773298241887,-500.0,0.00019781,2]
[408241643,1773298241897,-500.0,0.00019781,2]
[408241644,1773298241906,-500.0,0.00019781,2]
[408241645,1773298241915,-150.0,0.00019781,2]
[408241646,1773298241924,-500.0,0.00019781,2]
[408241647,1773298241934,-889.0,0.00019781,2]
[408241648,1773298241945,-500.0,0.00019781,2]
[408241649,1773298241955,-500.0,0.00019781,2]
[408241650,1773298241965,-500.0,0.00019781,2]
[408241651,1773298241974,-500.0,0.00019781,2]
[408241652,1773298241984,-500.0,0.00019781,2]
[408241653,1773298241994,-500.0,0.00019781,2]
[408241654,1773298242003,-557.0,0.00019781,2]
[408241655,1773298242013,-251.70358089,0.00019781,2]
[408241656,1773298242023,-500.0,0.00019781,2]
[408241657,1773298242033,-150.0,0.00019781,2]
[408241658,1773298242042,-500.0,0.00019781,2]
[408241659,1773298242052,-500.0,0.00019781,2]
[408241660,1773298242061,-150.0,0.00019781,2]
[408241661,1773298242070,-500.0,0.00019781,2]
[408241662,1773298242080,-500.0,0.00019781,2]
[408241663,1773298242089,-1000.0,0.00019781,2]
[408241664,1773298242098,-1000.0,0.00019781,2]
[408241665,1773298242108,-316.988,0.00019781,2]
[408241666,1773298242117,-1126.995,0.00019783,2]
[408241667,1773298242127,-1043.0,0.00019783,2]
[408241668,1773298242136,-1343.0,0.00019783,2]
[408241669,1773298242145,-1280.0,0.00019783,2]
[408241670,1773298242154,-3751.0,0.00019783,2]
[408241671,1773298242164,-414.0,0.00019783,2]
[408241672,1773298242173,-252.0,0.000198,14]
[408241673,1773298242182,-1018.25895,0.000198,2]
[408241674,1773298242191,-1018.25894,0.000198,2]
[408241675,1773298242200,-200.0,0.000198,2]
[408241676,1773298242209,-6273.57506241,0.00019804,2]
[408241677,1773298242219,-2083.08966227,0.0001981,2]
[408241678,1773298242228,-223793.47157738,0.0001981,2]
[408241679,1773298242238,-250.0,0.0001982,2]
[408241680,1773298242247,-200.0,0.0001983,2]
[408241681,1773298242256,-500.0,0.00019835,2]
[408241682,1773298242265,-277.8166161,0.00019835,2]
[408241683,1773298242275,-500.0,0.00019835,2]
[408241684,1773298242284,-150.0,0.00019835,2]
[408241685,1773298242293,-150.0,0.00019835,2]
[408241686,1773298242303,-500.0,0.00019835,2]
[408241687,1773298242312,-470.05006008,0.00019835,2]
[408241688,1773298242321,-150.0,0.00019835,2]
[408241689,1773298242331,-500.0,0.00019835,2]
[408241690,1773298242340,-500.0,0.00019835,2]
[408241691,1773298242349,-500.0,0.00019835,2]
[408241692,1773298242359,-500.0,0.00019835,2]
[408241693,1773298242368,-150.0,0.00019835,2]
[408241694,1773298242377,-500.0,0.00019835,2]
[408241695,1773298242387,-889.0,0.00019835,2]
[408241696,1773298242396,-500.0,0.00019835,2]
[408241697,1773298242406,-500.0,0.00019835,2]
[408241698,1773298242415,-500.0,0.00019835,2]
[408241699,1773298242424,-519.05367316,0.00019835,2]
[408241700,1773298242434,-500.0,0.00019835,2]
[408241701,1773298242443,-500.0,0.00019835,2]
[408241702,1773298242452,-557.0,0.00019835,2]
[408241703,1773298242462,-500.0,0.00019835,2]
[408241704,1773298242471,-500.0,0.00019835,2]
[408241705,1773298242481,-500.0,0.00019835,2]
[408241707,1773298242494,-150.0,0.00019835,2]
[408241709,1773298242504,-500.0,0.00019835,2]
[408241710,1773298242514,-500.0,0.00019835,2]
[408241711,1773298242523,-200.0,0.0001984,2]
[408241712,1773298242532,-923.41,0.00019842,2]
[408241713,1773298242541,-6273.57506241,0.00019852,2]
[408241714,1773298242550,-151.0,0.00019852,2]
[408241715,1773298242560,-151.0,0.00019852,2]
[408241716,1773298242570,-151.0,0.00019852,2]
[408241717,1773298242579,-151.0,0.00019852,2]
[408241718,1773298242591,-471.917558,0.00019852,2]
[408241719,1773298242601,-471.917558,0.00019852,2]
[408241720,1773298242611,-471.917558,0.00019852,2]
[408241721,1773298242622,-471.917558,0.00019852,2]
[408241722,1773298242633,-152.006543,0.00019852,2]
[408241723,1773298242643,-166.66,0.00019856,2]
[408241724,1773298242652,-200.0,0.00019865,2]
[408241725,1773298242661,-500.44254829,0.00019873,2]
[408241726,1773298242672,-500.0,0.00019873,2]
[408241727,1773298242684,-500.0,0.00019873,2]
[408241728,1773298242694,-500.0,0.00019873,2]
[408241729,1773298242703,-500.0,0.0001989,2]
[408241730,1773298242714,-200.0,0.0001989,2]
[408241731,1773298242724,-200.0,0.0001989,2]
[408241732,1773298242734,-286.63340985,0.0001989,2]
[408241733,1773298242743,-500.0,0.0001989,2]
[408241734,1773298242753,-150.0,0.0001989,2]
[408241735,1773298242764,-600.0,0.0001989,2]
[408241736,1773298242774,-500.0,0.0001989,2]
[408241737,1773298242783,-223.89418644,0.0001989,2]
[408241738,1773298242794,-500.0,0.0001989,2]
[408241739,1773298242803,-500.0,0.0001989,2]
[408241740,1773298242813,-889.0,0.0001989,2]
[408241741,1773298242823,-500.0,0.0001989,2]
[408241742,1773298242832,-500.0,0.0001989,2]
[408241743,1773298242841,-500.0,0.0001989,2]
[408241744,1773298242851,-500.0,0.0001989,2]
[408241745,1773298242862,-500.0,0.0001989,2]
[408241746,1773298242871,-557.0,0.0001989,2]
[408241747,1773298242881,-500.0,0.0001989,2]
[408241748,1773298242890,-500.0,0.0001989,2]
[408241749,1773298242899,-150.0,0.0001989,2]
[408241750,1773298242908,-314.57090824,0.0001989,2]
[408241751,1773298242918,-500.0,0.0001989,2]
[408241752,1773298242928,-200.0,0.000199,2]
[408241753,1773298242937,-11523.70895221,0.000199,2]
[408241754,1773298242947,-6273.57506241,0.000199,2]
[408241755,1773298242956,-1600.0,0.000199,2]
[408241756,1773298242966,-1203.0,0.000199,2]
[408241757,1773298242976,-958.0,0.000199,2]
[408241758,1773298242987,-200.0,0.00019907,2]
[408241759,1773298242996,-302.68983328,0.00019922,2]
[408241760,1773298243006,-500.0,0.00019945,2]
[408241761,1773298243018,-500.0,0.00019945,2]
[408241762,1773298243027,-179.81278619,0.00019945,2]
[408241763,1773298243036,-500.0,0.00019945,2]
[408241764,1773298243045,-500.0,0.00019945,2]
[408241765,1773298243054,-500.0,0.00019945,2]
[408241766,1773298243064,-889.0,0.00019945,2]
[408241767,1773298243073,-500.0,0.00019945,2]
[408241768,1773298243083,-500.0,0.00019945,2]
[408241769,1773298243093,-500.0,0.00019945,2]
[408241770,1773298243102,-500.0,0.00019945,2]
[408241771,1773298243113,-557.0,0.00019945,2]
[408241772,1773298243122,-500.0,0.00019945,2]
[408241773,1773298243132,-500.0,0.00019945,2]
[408241774,1773298243141,-500.0,0.00019945,2]
[408241775,1773298243150,-250.0,0.00019945,2]
[408241776,1773298243159,-500.0,0.00019945,2]
[408241777,1773298243168,-151.0,0.00019945,2]
[408241778,1773298243178,-161.063896,0.00019945,2]
[408241779,1773298243187,-192.103456,0.00019945,2]
[408241780,1773298243196,-578.622137,0.00019945,2]
[408241781,1773298243204,-192.103456,0.00019945,2]
[408241782,1773298243214,-192.103456,0.00019945,2]
[408241783,1773298243223,-578.622137,0.00019945,2]
[408241784,1773298243231,-192.103456,0.00019945,2]
[408241785,1773298243240,-151.0,0.00019945,2]
[408241786,1773298243249,-578.622137,0.00019945,2]
[408241787,1773298243258,-578.622137,0.00019945,2]
[408241788,1773298243267,-151.0,0.00019945,2]
[408241789,1773298243276,-151.0,0.00019945,2]
[408241790,1773298243285,-332.679952,0.00019945,2]
[408241791,1773298243294,-332.679952,0.00019945,2]
[408241792,1773298243303,-151.0,0.00019945,2]
[408241793,1773298243312,-332.679952,0.00019945,2]
[408241794,1773298243322,-200.0,0.0001995,2]
[408241795,1773298243331,-200.0,0.00019972,2]
[408241796,1773298243341,-500.48646595,0.00019973,2]
[408241797,1773298243350,-500.0,0.00019973,2]
[408241798,1773298243360,-501.31771675,0.00019973,2]
[408241799,1773298243368,-151.48472709,0.00019973,2]
[408241800,1773298243378,-500.0,0.00019973,2]
[408241801,1773298243387,-150.14636363,0.00019973,2]
[408241802,1773298243395,-524.15,0.00019974,2]
[408241803,1773298243404,-3469.5652167,0.00019977,2]
[408241804,1773298243417,-222.66927327,0.0001999,2]
[408241805,1773298243429,-168.0,0.00019995,2]
[408241806,1773298243443,-200.0,0.0002,2]
[408241807,1773298243456,-500.0,0.0002,2]
[408241808,1773298243466,-500.0,0.0002,2]
[408241809,1773298243477,-300.0,0.0002,2]
[408241810,1773298243489,-500.0,0.0002,2]
[408241811,1773298243501,-889.0,0.0002,2]
[408241812,1773298243513,-429.29347093,0.0002,2]
[408241813,1773298243526,-500.0,0.0002,2]
[408241814,1773298243538,-500.0,0.0002,2]
[408241815,1773298243550,-608.31593509,0.0002,2]
[408241816,1773298243563,-557.0,0.0002,2]
[408241817,1773298243574,-500.0,0.0002,2]
[408241818,1773298243586,-500.0,0.0002,2]
[408241819,1773298243598,-500.0,0.0002,2]
[408241820,1773298243609,-500.0,0.0002,2]
[408241821,1773298243619,-643529.0270383,0.0002,2]
[408241822,1773298243706,-361.01643239,0.0002,2]
[408241823,1773298243808,-512.74962191,0.00019783,2]
[408241825,1773298245439,-1949.25037809,0.00019783,2]
[408241826,1773298245449,-332.679952,0.00019945,2]
[408241827,1773298245460,-121495.92954205,0.0002,2]
[408241828,1773298245470,-1000.0,0.0002,2]
[408241829,1773298245480,-1000.0,0.0002,2]
[408241830,1773298245491,-1000.0,0.0002,2]
[408241831,1773298245502,-1000.0,0.0002,2]
[408241832,1773298245515,-1000.0,0.0002,2]
[408241833,1773298245526,-1000.0,0.0002,2]
[408241834,1773298245536,-1000.0,0.0002,2]
[408241835,1773298245547,-1000.0,0.0002,2]
[408241836,1773298245557,-1000.0,0.0002,2]
[408241837,1773298245566,-1000.0,0.0002,2]
[408241838,1773298245578,-1000.0,0.0002,2]
[408241839,1773298245590,-1000.0,0.0002,2]
[408241840,1773298245601,-1000.0,0.0002,2]
[408241841,1773298245613,-1000.0,0.0002,2]
[408241842,1773298245625,-1000.0,0.0002,2]
[408241843,1773298245636,-1000.0,0.0002,2]
[408241844,1773298245647,-1000.0,0.0002,2]
[408241845,1773298245659,-1000.0,0.0002,2]
[408241846,1773298245670,-1000.0,0.0002,2]
[408241847,1773298245681,-1000.0,0.0002,2]
[408241848,1773298245695,-1000.0,0.0002,2]
[408241849,1773298245707,-1000.0,0.0002,2]
[408241850,1773298245718,-1000.0,0.0002,2]
[408241851,1773298245731,-1000.0,0.0002,2]
[408241852,1773298245742,-62.62131998,0.0002,2]
[408241853,1773298245757,-937.37868002,0.0002,2]
[408241854,1773298245768,-1000.0,0.0002,2]
[408241855,1773298245778,-104.21406056,0.0002,2]
[408241856,1773298245792,-895.78593944,0.0002,2]
[408241857,1773298245803,-1000.0,0.0002,2]
[408241858,1773298245814,-1000.0,0.0002,2]
[408241860,1773298245825,-293.63843986,0.0002,2]
[408241862,1773298245836,-200.0,0.0002,2]
[408241864,1773298245846,-853.41441896,0.0002,2]
[408241866,1773298245857,-7453.71636921,0.0002,2]
[408241873,1773298664273,-391.25,0.00016333,7]
[408241874,1773298664293,-3508.75,0.000167,2]
[408241884,1773298867482,4447.676904,7.945e-05,2]
[408241889,1773298936995,820.88890927,9.4e-05,2]
[408241890,1773298945648,505.3038596,9.4e-05,2]
[408241891,1773298945937,246.13032713,9.4e-05,2]
[408241892,1773298945959,253.86967287,9.4e-05,2]
[408241893,1773298946383,832.00906792,9.4e-05,2]
[408241894,1773298949434,702.93117237,9.4e-05,2]
[408241895,1773298952362,781.04170558,9.4e-05,2]
[408241896,1773298953057,500.0,9.4e-05,2]
[408241897,1773298954512,6930.14838126,9.5e-05,3]
[408241898,1773298954531,10000.0,9.5e-05,3]
[408241899,1773298954551,10000.0,9.5e-05,3]
[408241900,1773298954575,10000.0,9.5e-05,3]
[408241901,1773298954595,10000.0,9.5e-05,3]
[408241902,1773298954615,10000.0,9.5e-05,3]
[408241903,1773298954636,10000.0,9.5e-05,3]
[408241904,1773298954656,3707.66305385,9.5e-05,3]
[408241905,1773298986076,161.0,0.000144,2]
[408241906,1773298986351,161.0,0.000144,2]
[408241907,1773298986613,161.0,0.000144,2]
[408241908,1773298987187,161.0,0.000144,2]
[408241909,1773298987754,161.0,0.000144,2]
[408241910,1773298988010,161.0,0.000144,2]
[408241911,1773298988269,161.0,0.000144,2]
[408241912,1773298988829,161.0,0.000144,2]
[408241913,1773299033674,-161.0,0.00014763,3]
[408241914,1773299033705,-500.0,0.00015,30]
[408241915,1773299033732,-501.436542,0.00015,30]
[408241916,1773299033761,-500.0,0.00015,30]
[408241917,1773299033794,-850.0,0.00015,30]
[408241918,1773299033822,-500.0,0.00015,30]
[408241919,1773299033848,-500.0,0.00015,30]
[408241920,1773299033874,-500.0,0.00015,30]
[408241921,1773299033901,-500.0,0.00015,30]
[408241922,1773299033927,-475.136916,0.00015,30]
[408241923,1773299034124,-24.863084,0.00015,30]
[408241924,1773299034159,-604.37882443,0.00015,30]
[408241925,1773299034203,-501.4722912,0.00015,30]
[408241926,1773299034244,-500.0,0.00015,30]
[408241927,1773299034283,-500.0,0.00015,30]
[408241928,1773299034323,-500.0,0.00015,30]
[408241929,1773299034362,-161.0,0.00015421,3]
[408241930,1773299034399,-161.0,0.00016079,3]
[408241931,1773299034682,-4040.07034964,0.000162,5]
[408241932,1773299036560,-959.93276997,0.000162,5]
[408241933,1773299036593,-501.3548295,0.00016673,2]
[408241934,1773299036635,-500.8419294,0.00016673,2]
[408241935,1773299036672,-503.26645979,0.00016673,2]
[408241936,1773299036714,-500.0,0.00016673,2]
[408241937,1773299036750,-500.0,0.00016673,30]
[408241938,1773299036788,-500.0,0.00016673,30]
[408241939,1773299036822,-173.74396754,0.00016673,30]
[408241940,1773299036857,-290.0,0.00016683,2]
[408241941,1773299036964,-1766.33937244,0.00016683,2]
[408241942,1773299037000,-1200.0,0.00016699,2]
[408241943,1773299037188,-1141.7300876,0.000167,2]
[408241944,1773299037204,-4067.33125512,0.000167,2]
[408241945,1773299039665,-10000.01,0.000167,2]
[408241946,1773299239997,726.01234602,9.4e-05,2]
[408241947,1773299241862,500.0,9.4e-05,2]
[408241967,1773299431894,-157.85,0.00014735,2]
[408241969,1773299431904,-250.0,0.00014735,2]
[408241971,1773299431913,-272.0,0.00014735,2]
[408241973,1773299431922,-500.0,0.00015,30]
[408241975,1773299431931,-500.0,0.00015,30]
[408241976,1773299431940,-500.0,0.00015,30]
[408241978,1773299431950,-500.0,0.00015,30]
[408241980,1773299431959,-500.0,0.00015,30]
[408241982,1773299431968,-500.0,0.00015,30]
[408241984,1773299431977,-142.51757386,0.00015,30]
[408241986,1773299431990,-357.48242614,0.00015,30]
[408241988,1773299431999,-500.0,0.00015,30]
[408241990,1773299432008,-253.83865885,0.00015574,2]
[408241992,1773299432017,-250.0,0.00016208,2]
[408241994,1773299432026,-3646.34148602,0.00016208,2]
[408241996,1773299432035,-240.0,0.000167,3]
[408241998,1773299432044,-155.0,0.000167,3]
[408242000,1773299432053,-157.0,0.000167,3]
[408242002,1773299432062,-73789.79675045,0.000167,2]
[408242004,1773299432071,-185.239,0.000167,2]
[408242006,1773299432081,-4302.526,0.000167,2]
[408242008,1773299432093,-166.99,0.00016712,2]
[408242010,1773299432103,-240.0,0.00016979,3]
[408242012,1773299432112,-536.0,0.00017,2]
[408242014,1773299432121,-155.0,0.00017053,3]
[408242015,1773299432131,-240.0,0.00017258,3]
[408242016,1773299432140,-155.0,0.00017407,3]
[408242017,1773299432150,-240.0,0.00017537,3]
[408242018,1773299432159,-673.0,0.000176,2]
[408242019,1773299432168,-200.0,0.00017746,2]
[408242020,1773299432177,-155.0,0.0001776,3]
[408242021,1773299432186,-862.43,0.00017794,2]
[408242022,1773299432195,-240.0,0.00017816,3]
[408242023,1773299432203,-240.0,0.00018095,3]
[408242024,1773299432213,-155.0,0.00018113,3]
[408242025,1773299432222,-1852.42,0.00018279,2]
[408242026,1773299432232,-500.0,0.00018356,7]
[408242027,1773299432241,-500.0,0.00018356,7]
[408242028,1773299432251,-300.0,0.00018369,2]
[408242029,1773299432260,-240.0,0.00018374,3]
[408242030,1773299432269,-3928.33,0.00018418,2]
[408242031,1773299432278,-2000.0,0.00018418,2]
[408242032,1773299432287,-155.0,0.00018467,3]
[408242033,1773299432297,-999.99,0.00018533,2]
[408242034,1773299432306,-150.99,0.00018533,2]
[408242035,1773299432316,-4589.93,0.00018533,2]
[408242036,1773299432326,-24184.99,0.00018533,2]
[408242037,1773299432335,-9999.99,0.00018533,2]
[408242038,1773299432345,-1477.27,0.00018533,2]
[408242039,1773299432355,-9999.99,0.00018533,2]
[408242040,1773299432364,-7126.34,0.00018533,2]
[408242041,1773299432374,-3716.43,0.00018533,2]
[408242042,1773299432383,-299.99,0.00018533,4]
[408242043,1773299432392,-9999.99,0.00018533,2]
[408242044,1773299432402,-500.0,0.00018571,2]
[408242045,1773299432412,-1280.0,0.00018578,2]
[408242046,1773299432421,-240.0,0.00018653,3]
[408242047,1773299432431,-2188.21709309,0.00018751,2]
[408242048,1773299432443,-1790.51,0.00018816,2]
[408242049,1773299432453,-251.0,0.00018817,2]
[408242050,1773299432463,-155.0,0.0001882,3]
[408242051,1773299432472,-185.02,0.00018853,2]
[408242052,1773299432481,-364.70284885,0.00018919,2]
[408242053,1773299432491,-240.0,0.00018932,3]
[408242054,1773299432500,-2500.0,0.00018958,2]
[408242055,1773299432513,-4802.8498,0.00018959,2]
[408242056,1773299432522,-442.48738794,0.00018959,2]
[408242057,1773299432531,-500.0,0.00018999,2]
[408242058,1773299432540,-11567.53695383,0.00019,7]
[408242059,1773299432550,-313.0,0.00019013,2]
[408242060,1773299432559,-8067.88,0.00019048,2]
[408242061,1773299432568,-500.0,0.00019056,2]
[408242062,1773299432578,-500.0,0.00019056,2]
[408242063,1773299432587,-629.27104303,0.00019056,2]
[408242064,1773299432597,-500.0,0.00019056,2]
[408242065,1773299432606,-500.0,0.00019056,2]
[408242066,1773299432617,-500.0,0.00019056,2]
[408242067,1773299432627,-500.0,0.00019056,2]
[408242068,1773299432636,-500.0,0.00019056,2]
[408242069,1773299432645,-500.0,0.00019056,2]
[408242070,1773299432654,-500.0,0.00019056,2]
[408242071,1773299432663,-500.0,0.00019056,2]
[408242072,1773299432672,-500.0,0.00019056,2]
[408242073,1773299432681,-500.0,0.00019056,2]
[408242074,1773299432690,-500.0,0.00019056,2]
[408242075,1773299432699,-500.0,0.00019056,2]
[408242076,1773299432709,-500.0,0.00019056,2]
[408242077,1773299432718,-500.0,0.00019056,2]
[408242078,1773299432727,-500.0,0.00019056,2]
[408242079,1773299432737,-500.0,0.00019056,2]
[408242080,1773299432746,-500.0,0.00019056,2]
[408242081,1773299432756,-500.0,0.00019056,2]
[408242082,1773299432766,-500.0,0.00019056,2]
[408242083,1773299432775,-500.0,0.00019056,2]
[408242084,1773299432784,-500.0,0.00019056,2]
[408242085,1773299432794,-500.0,0.00019056,2]
[408242086,1773299432803,-500.0,0.00019056,2]
[408242087,1773299432813,-500.0,0.00019056,2]
[408242088,1773299432822,-500.0,0.00019056,2]
[408242089,1773299432832,-500.0,0.00019056,2]
[408242090,1773299432841,-500.0,0.00019056,2]
[408242091,1773299432851,-500.0,0.00019056,2]
[408242092,1773299432860,-500.0,0.00019056,2]
[408242093,1773299432870,-500.0,0.00019056,2]
[408242094,1773299432880,-500.0,0.00019056,2]
[408242095,1773299432889,-500.0,0.00019056,2]
[408242096,1773299432899,-500.0,0.00019056,2]
[408242097,1773299432909,-500.0,0.00019056,2]
[408242098,1773299432918,-500.0,0.00019056,2]
[408242099,1773299432928,-500.0,0.00019056,2]
[408242100,1773299432938,-500.0,0.00019056,2]
[408242101,1773299432948,-500.0,0.00019056,2]
[408242102,1773299432958,-500.0,0.00019056,2]
[408242103,1773299432968,-500.0,0.00019056,2]
[408242104,1773299432978,-500.0,0.00019056,2]
[408242105,1773299432988,-500.0,0.00019056,2]
[408242106,1773299432998,-500.0,0.00019056,2]
[408242107,1773299433007,-500.0,0.00019056,2]
[408242108,1773299433018,-500.0,0.00019056,2]
[408242109,1773299433027,-500.0,0.00019056,2]
[408242110,1773299433036,-500.0,0.00019056,2]
[408242111,1773299433046,-500.0,0.00019056,2]
[408242112,1773299433055,-500.0,0.00019056,2]
[408242113,1773299433064,-500.0,0.00019056,2]
[408242114,1773299433074,-500.0,0.00019056,2]
[408242115,1773299433085,-500.0,0.00019056,2]
[408242116,1773299433095,-500.0,0.00019056,2]
[408242117,1773299433104,-500.0,0.00019056,2]
[408242118,1773299433114,-500.0,0.00019056,2]
[408242119,1773299433123,-500.0,0.00019056,2]
[408242120,1773299433134,-500.0,0.00019056,2]
[408242121,1773299433143,-500.0,0.00019056,2]
[408242122,1773299433152,-500.0,0.00019056,2]
[408242123,1773299433162,-500.0,0.00019056,2]
[408242124,1773299433171,-500.0,0.00019056,2]
[408242125,1773299433180,-500.0,0.00019056,2]
[408242126,1773299433189,-500.0,0.00019056,2]
[408242127,1773299433198,-500.0,0.00019056,2]
[408242128,1773299433207,-194.86860888,0.00019056,2]
[408242129,1773299433217,-500.0,0.00019056,2]
[408242130,1773299433226,-500.0,0.00019056,2]
[408242131,1773299433234,-500.0,0.00019056,2]
[408242132,1773299433243,-500.0,0.00019056,2]
[408242133,1773299433252,-500.0,0.00019056,2]
[408242134,1773299433261,-500.0,0.00019056,2]
[408242135,1773299433271,-500.0,0.00019056,2]
[408242136,1773299433280,-500.0,0.00019056,2]
[408242137,1773299433289,-499.99999999,0.00019056,2]
[408242138,1773299433299,-500.0,0.00019057,2]
[408242139,1773299433308,-300.0,0.00019058,2]
[408242140,1773299433318,-309.75605228,0.00019058,2]
[408242141,1773299433327,-672.44576879,0.00019058,2]
[408242142,1773299433337,-233.78119399,0.00019058,2]
[408242143,1773299433346,-500.0,0.00019058,2]
[408242144,1773299433355,-268.33214448,0.00019058,2]
[408242145,1773299433364,-500.0,0.00019058,2]
[408242146,1773299433374,-514.94724986,0.00019058,2]
[408242147,1773299433384,-500.0,0.00019058,2]
[408242148,1773299433393,-500.0,0.00019058,2]
[408242149,1773299433403,-500.0,0.00019058,2]
[408242150,1773299433412,-500.0,0.00019058,2]
[408242151,1773299433422,-521.6043228,0.00019058,2]
[408242152,1773299433431,-514.33858661,0.00019058,2]
[408242153,1773299433440,-500.0,0.00019058,2]
[408242154,1773299433449,-500.0,0.00019058,2]
[408242155,1773299433459,-500.0,0.00019058,2]
[408242156,1773299433468,-500.0,0.00019058,2]
[408242157,1773299433477,-500.0,0.00019058,2]
[408242158,1773299433487,-500.0,0.00019058,2]
[408242159,1773299433496,-509.55308461,0.00019058,2]
[408242160,1773299433505,-500.0,0.00019058,2]
[408242161,1773299433515,-371.34530882,0.00019058,2]
[408242162,1773299433524,-500.0,0.00019058,2]
[408242163,1773299433534,-500.0,0.00019058,2]
[408242164,1773299433543,-463.4000001,0.00019058,2]
[408242165,1773299433552,-506.63695301,0.00019058,2]
[408242166,1773299433561,-500.0,0.00019058,2]
[408242167,1773299433571,-500.0,0.00019058,2]
[408242168,1773299433580,-500.0,0.00019058,2]
[408242169,1773299433589,-500.0,0.00019058,2]
[408242170,1773299433598,-500.0,0.00019058,2]
[408242171,1773299433608,-500.0,0.00019058,2]
[408242172,1773299433617,-500.0,0.00019058,2]
[408242173,1773299433627,-500.0,0.00019058,2]
[408242174,1773299433636,-150.6,0.00019058,2]
[408242175,1773299433645,-2013.0,0.00019059,2]
[408242176,1773299433654,-5202.34,0.00019059,2]
[408242177,1773299433663,-500.0,0.00019073,2]